Cogmind - Beta 15 *** ADVENTURER MODE // 2025.08.06 @ 11:26:56 Player: IceNine Result: Smashed by cave-in Performance ------------- Evolutions (5) 2500 Regions Visited (5) 1000 Robots Destroyed (68) 340 Value Destroyed (3118) 3118 Prototype IDs (4) 80 Alien Tech Used (0) 0 Bonus (817) 817 TOTAL SCORE: 7855 Bonus ------- Follower Combat Kills 96 Registered with UFD 300 Met Optimus in HQ 500 Friendly Fire -79 Cogmind --------- Core Integrity 0/1000 Matter 55/300 Energy 100/100 System Corruption 35% Temperature Cool (0) Movement Rolling (160) Ox4 Location -5/Extension Parts ------- > --- POWER (3) -------- (None) > --- PROPULSION (4) --- Compact Wheel > --- UTILITY (5) ------ Huge Storage Unit > --- WEAPON (5) ------- (None) > --- INVENTORY (25) --- Improved Ion Engine Light Nuclear Core Carbon-fiber Leg Carbon-fiber Leg Flexi-carbon Leg Improved Heat Sink Advanced Heat Sink Large Storage Unit Triangulator Improved Sensor Array Improved Signal Interpreter Energy Filter Launcher Loader Jamming Amplifier Improved Corruption Screen Recalibrator Mini Drone Bay (3/3) Mini Drone Bay (3/3) Smartbomb Launcher Scrap Shield Fragment (49) DRS Beacon (Ready) Peak State ------------ > --- POWER ------------ Improved Ion Engine F-cell Engine Micro Fission Core > --- PROPULSION ------- Carbon-fiber Leg Overtuned Titanium Leg VSS Leg > --- UTILITY ---------- Scrap Suit Power Amplifier Huge Storage Unit Improved Energy Well > --- WEAPON ----------- Compact Ion Cannon Gauss Rifle Heavy Battle Rifle Coil Gun Heavy Machine Gun > --- INVENTORY -------- Large Storage Unit Improved Sensor Array Thermal Shield Improved Corruption Screen Long-range Tractor Beam Recalibrator Scrapoid Pod Antimatter Cannon Antimatter Cannon Proton Missile Launcher Smartbomb Launcher Scrap Shield Fragment DRS Beacon [Rating: 75] Favorites ----------- Power Micro Fission Core Engine Improved Deuterium Engine Power Core Micro Fission Core Propulsion Compact Wheel Leg Overtuned Titanium Leg Wheel Compact Wheel Utility Huge Storage Unit Device Scrap Suit Storage Huge Storage Unit Processor Improved Target Analyzer Weapon Assault Rifle Energy Gun Wave Gun Energy Cannon Compact Ion Cannon Ballistic Gun Assault Rifle Ballistic Cannon Antimatter Cannon Launcher Heavy Rocket Launcher Build | -11 -10 -10 -7 -5 -5 ------- Run | Yrd Mat Sub Scr Fac Ext Slots Evolved 10 | . . . . 10 . Power 2 | . . . . 2 . Propulsion 2 | . . . . 2 . Utility 3 | . . . . 3 . Weapon 3 | . . . . 3 . Parts Attached 89 | 6 2 3 14 60 4 Power 17 | 1 . 1 3 10 2 Engine 11 | 1 . 1 3 6 . Core 6 | . . . . 4 2 Reactor . | . . . . . . Propulsion 22 | 2 . . 3 17 . Treads . | . . . . . . Leg 12 | . . . 2 10 . Wheel 10 | 2 . . 1 7 . Hover . | . . . . . . Flight . | . . . . . . Utility 23 | 1 2 1 3 15 1 Device 15 | . 1 1 2 10 1 Storage 5 | 1 1 . 1 2 . Processor 3 | . . . . 3 . Hackware . | . . . . . . Protection . | . . . . . . Artifact . | . . . . . . Weapon 27 | 2 . 1 5 18 1 Energy Gun 9 | 1 . . 1 7 . Energy Cannon 3 | . . 1 1 1 . Ballistic Gun 8 | 1 . . 1 5 1 Ballistic Cannon 5 | . . . 1 4 . Launcher 2 | . . . 1 1 . Special Weapon . | . . . . . . Impact Weapon . | . . . . . . Slashing Weapon . | . . . . . . Piercing Weapon . | . . . . . . Special Melee Weapon . | . . . . . . Unidentified Prototypes 4 | . . . . 4 . Parts Lost 59 | . . . 5 39 15 Power 11 | . . . 1 7 3 Propulsion 16 | . . . 1 12 3 Utility 9 | . . . 1 4 4 Weapon 23 | . . . 2 16 5 Highest Loss Streak 7 | . . . 4 7 7 To Critical Strikes 1 | . . . . . 1 Average Backups 11 | . 6 11 12 9 19 Power 1 | . 1 1 2 . 2 Propulsion 1 | . 2 4 2 1 3 Utility 4 | . . 1 2 4 13 Weapon 3 | . 2 4 4 2 1 Tool/Special . | . . . . . . Unused Backups 29 | . 1 . 13 1 14 Power 1 | . . . . . 1 Propulsion 7 | . 1 . 4 . 2 Utility 14 | . . . 4 . 10 Weapon 5 | . . . 4 . 1 Tool/Special 2 | . . . 1 1 . Average Slot Usage (%) 79 | . 93 100 87 74 66 Engine 8 | . 14 14 13 5 1 Core 2 | . . . . 4 6 Leg 6 | . . . 1 12 . Wheel 10 | . 28 28 16 3 15 Device 11 | . 8 14 12 11 6 Storage 8 | . 14 14 14 5 5 Processor 3 | . . . . 5 10 Energy Gun 6 | . 14 9 6 5 5 Energy Cannon 3 | . . 4 6 2 . Ballistic Gun 9 | . 14 14 13 8 5 Ballistic Cannon 3 | . . . 1 4 5 Peak Build Rating 75 | 6 8 12 29 75 72 Average Rating 42 | 4 7 9 22 58 47 On Entrance 17 | . 6 8 12 24 55 Naked Turns . | . . . . . . Heaviest Build 136 | 11 28 37 56 135 136 Greatest Support 69 | 20 20 20 28 69 58 Greatest Overweight (x) 41 | . 1 1 3 41 3 Average Overweight (x) 1 | . . 1 1 2 2 Largest Inventory Capacity 25 | 8 15 15 15 25 25 Average Capacity 19 | 6 10 15 15 22 25 Most Carried 25 | 2 10 13 15 25 25 Average Carried 14 | . 7 11 14 13 23 Final Capacity 25 | 8 15 15 15 25 25 Final Carried 23 | 2 10 13 15 23 23 Class Distribution -------------------- 46% | Mutant 28% | Scavenger-Gunner 15% | Scavenger-Scrapper 3% | Gunner Dominant Class ---------------- Mutant | -10/Materials Mutant | -10/Subcaves Mutant | -7/Scraptown Scavenger-Gunner | -5/Factory Scavenger-Gunner | -5/Extension Resources | -11 -10 -10 -7 -5 -5 ----------- Run | Yrd Mat Sub Scr Fac Ext Matter Collected 2558 | 145 103 92 290 1774 154 Remotely 156 | . . . . 156 . Salvage Created 3038 | . 57 132 277 2505 67 Parts 120 | . 3 6 16 92 3 Haulers Intercepted 2 | . 1 . . 1 . Recyclers Shooed 4 | . . . . 4 . Parts Field Recycled . | . . . . . . Retrieved Matter . | . . . . . . Parts Self-Destructed . | . . . . . . Prevented . | . . . . . . Kills | -11 -10 -10 -7 -5 -5 ------- Run | Yrd Mat Sub Scr Fac Ext Combat Hostiles Destroyed 51 | . . 3 6 41 1 Guns 19 | . . . 2 16 1 Cannons 22 | . . 3 2 17 . AOE 9 | . . . 2 7 . Classes Destroyed 17 | . 1 1 4 11 . Worker 3 | . . . . 3 . Builder 2 | . . . . 1 1 Tunneler 1 | . . . . 1 . Hauler 2 | . 1 . . 1 . Recycler 7 | . . . . 7 . Watcher 2 | . . . . 2 . Swarmer 8 | . . . . 8 . Grunt 14 | . . . . 14 . Brawler 1 | . . . . 1 . Sentry 4 | . . . . 3 1 Hunter 2 | . . . . 2 . Programmer 13 | . . . . 13 . Subdweller 3 | . . 3 . . . Federalist 2 | . . . 2 . . Explorer 1 | . . . 1 . . Ranger 1 | . . . 1 . . Scrapper 2 | . . . 2 . . Best Kill Streak 6 | . 1 2 4 6 2 Combat Bots Only 4 | . . 2 4 4 1 Max Kills in Single Turn 5 | . 1 1 2 5 2 Gunslinging . | . . . . . . Exploded 2 | . . . 2 2 . Melee . | . . . . . . Uniques/NPCs Destroyed . | . . . . . . Combat | -11 -10 -10 -7 -5 -5 -------- Run | Yrd Mat Sub Scr Fac Ext Hostile Shots Fired 565 | . 1 5 66 464 29 Missed 129 | . . 3 16 105 5 Hits 436 | . 1 2 50 359 24 Melee 5 | . . . 3 2 . Projectile 431 | . 1 2 47 357 24 AOE 1 | . . . . 1 . Critical Strikes 19 | . . . . 18 1 Damage Taken 7581 | . 4 25 580 5388 1584 Core 1150 | . . . 132 778 240 Absorbed by Shields 164 | . . . . 164 . Ignored by Resistances 1829 | . 2 8 165 1530 124 Regen/Repaired (Parts) 1 | . . . . 1 . Core Remaining (%) 73 | 100 . . 47 . . Volleys Fired 166 | . 1 9 16 125 15 Largest 5 | . 2 2 2 5 5 Hottest 307 | . 60 100 115 307 224 Shots Fired 457 | . 2 16 30 354 55 Gun 257 | . 2 12 14 191 38 Cannon 188 | . . 4 15 152 17 Launcher 12 | . . . 1 11 . Special . | . . . . . . Kinetic 293 | . 1 9 20 219 44 Thermal 120 | . 1 7 . 101 11 Explosive 8 | . . . 1 7 . Electromagnetic 36 | . . . 9 27 . Robot Hit Streak 21 | . 2 15 21 20 10 Robot Miss Streak 4 | . . . 3 4 2 Penetration Max 1 | . . . . 1 1 Secondary Targets . | . . . . . . Shots Hit Robots 271 | . 2 13 18 211 27 Core Hits 116 | . 2 4 11 87 12 Critical Kills 4 | . . . 1 3 . Critical Parts Destroyed 4 | . . . . 3 1 Critical Strikes 22 | . . . 1 18 3 Burn 2 | . . . . 2 . Meltdown 1 | . . . . 1 . Destroy 7 | . . . 1 5 1 Blast 10 | . . . . 8 2 Corrupt 2 | . . . . 2 . Melee Attacks . | . . . . . . Impact . | . . . . . . Slashing . | . . . . . . Piercing . | . . . . . . Sneak Attacks . | . . . . . . Combat Hostiles . | . . . . . . Follow-up Attacks . | . . . . . . Damage Inflicted 9283 | . 22 196 448 7829 788 Guns 3184 | . 22 114 161 2444 443 Cannons 4105 | . . 82 185 3493 345 Explosions 1994 | . . . 102 1892 . Melee . | . . . . . . Ramming . | . . . . . . Kinetic 5115 | . 12 82 209 4145 667 Thermal 3248 | . 10 114 . 3003 121 Explosive 571 | . . . 102 469 . Electromagnetic 349 | . . . 137 212 . Impact . | . . . . . . Slashing . | . . . . . . Piercing . | . . . . . . Highest Corruption 31 | . . . . 9 31 Average Corruption 9 | . . . . 7 17 Corruption Purged . | . . . . . . Corruption Blocked 5 | . . . . 5 . Effects 116 | . . . . 91 25 Message Errors 28 | . . . . 23 5 Matter Fused 29 | . . . . 21 8 Heat Flow Errors 9 | . . . . 6 3 Energy Discharges 10 | . . . . 7 3 Parts Rejected 4 | . . . . 3 1 Parts Fused 1 | . . . . . 1 Data Loss (minor) 11 | . . . . 10 1 Data Loss (major) 11 | . . . . 9 2 Misfires 4 | . . . . 4 . Alerts 4 | . . . . 4 . Weapon Failures 5 | . . . . 4 1 Overload Shots . | . . . . . . Overflow Damage 620 | . . . . 608 12 Projectiles 245 | . . . . 233 12 Explosions 375 | . . . . 375 . Melee . | . . . . . . Knockbacks 29 | . . . . 27 2 Impact . | . . . . . . Kinetic 27 | . . . . 26 1 Secondary 2 | . . . . 1 1 Self-Inflicted Damage 233 | . . . . 233 . Shots 6 | . . . . 6 . Rammed . | . . . . . . Targets Rammed . | . . . . . . Kicked . | . . . . . . Crushed . | . . . . . . Highest Temperature 618 | . . . 125 618 596 Average Temperature 196 | . . . 42 200 256 Received Heat Transfer 1356 | . . . 186 1071 99 Effects 63 | . . . . 45 18 Shutdowns 22 | . . . . 17 5 Energy Bleed 9 | . . . . 8 1 Interference 15 | . . . . 8 7 Matter Decay 3 | . . . . 3 . Short Circuit 5 | . . . . 3 2 Damage (minor) 6 | . . . . 3 3 Damage (major) 2 | . . . . 2 . Damage (core) 1 | . . . . 1 . Siege Activations . | . . . . . . Martial Activations . | . . . . . . Shielding Activations . | . . . . . . Robots Disrupted . | . . . . . . Combat Hostiles . | . . . . . . Robots Corrupted . | . . . . . . Combat Hostiles . | . . . . . . Parts Fried 2 | . . . . 2 . Impact Corruptions . | . . . . . . Robots Melted 1 | . . . . 1 . Combat Hostiles 1 | . . . . 1 . Parts Melted 9 | . . 1 3 5 . Heat Transferred 3957 | . 25 186 . 3561 185 Parts Sabotaged . | . . . . . . Parts Stolen . | . . . . . . Parts Stripped . | . . . . . . Power Chain Reactions 1 | . . . . 1 . Alert | -11 -10 -10 -7 -5 -5 ------- Run | Yrd Mat Sub Scr Fac Ext Maximum Alert Level 1 | . . . . 1 . Low Security (%) 83 | 100 100 . . 79 100 Level 1 16 | . . . . 20 . Level 2 . | . . . . . . Level 3 . | . . . . . . Level 4 . | . . . . . . Level 5 . | . . . . . . High Security . | . . . . . . Max Security . | . . . . . . Peak Influence 397 | . 7 . . 397 74 Initial 38 | . . . . . 38 Average 105 | . . . . 132 11 Influence Increases 2062 | . 7 . . 1858 197 Destroy 0b10 Robot/C 880 | . . . . 820 60 Destroy 0b10 Robot/NC 85 | . 5 . . 75 5 Destroy Leader 188 | . 2 . . 186 . Successful Hack 4 | . . . . 4 . Disable Machine 288 | . . . . 288 . Destroy Structure 452 | . . . . 440 12 Lose Combat Pursuer 165 | . . . . 45 120 Influence Decreases 2062 | . 7 . . 1766 289 Entered New Map 54 | . . . . . 54 Time Decay 1536 | . 7 . . 1396 133 Lost Part 468 | . . . . 370 98 Lost Ally 4 | . . . . . 4 Squads Dispatched 15 | . 1 . . 13 1 Investigation 2 | . 1 . . . 1 Extermination 6 | . . . . 6 . Reinforcement 7 | . . . . 7 . Assault . | . . . . . . Garrison . | . . . . . . Intercept . | . . . . . . Searches Triggered . | . . . . . . Construction Impeded 3 | . . . . 3 . Haulers Reinforced 1 | . . . . 1 . Active Scanning Responses . | . . . . . . Cargo Convoy Interrupts . | . . . . . . Stealth | -11 -10 -10 -7 -5 -5 --------- Run | Yrd Mat Sub Scr Fac Ext Distress Signals 3 | . 1 . . 2 . Communications Jammed . | . . . . . . Distress Signals . | . . . . . . Times Spotted 89 | . 3 8 13 52 13 Peak Tracking Total 10 | . 3 2 5 7 10 Tactical Retreats 7 | . 1 . . 3 3 Traps | -11 -10 -10 -7 -5 -5 ------- Run | Yrd Mat Sub Scr Fac Ext Traps Triggered 5 | . 1 . . 4 . Indirectly . | . . . . . . Trap Hack Attempts . | . . . . . . Triggered . | . . . . . . Disarmed . | . . . . . . Reprogrammed . | . . . . . . Reused . | . . . . . . Traps Extracted . | . . . . . . Installed . | . . . . . . Triggered . | . . . . . . Machines | -11 -10 -10 -7 -5 -5 ---------- Run | Yrd Mat Sub Scr Fac Ext Machines Disabled 33 | . . . 1 32 . Max in Single Turn 19 | . . . 1 19 . Machines Repaired . | . . . . . . Machines Dismantled . | . . . . . . Machines Sabotaged . | . . . . . . Overloaded Fab Kills . | . . . . . . Hacking | -11 -10 -10 -7 -5 -5 --------- Run | Yrd Mat Sub Scr Fac Ext Machines Accessed 15 | . 1 . 7 3 4 Terminals 7 | . . . . 3 4 Fabricators . | . . . . . . Repair Stations . | . . . . . . Recycling Units 1 | . 1 . . . . Scanalyzers . | . . . . . . Garrison Access . | . . . . . . Total Hacks 67 | . 3 . 46 8 10 Successful 57 | . 3 . 46 4 4 Failed 10 | . . . . 4 6 Catastrophic 1 | . . . . . 1 Database Lockouts . | . . . . . . Manual 4 | . . . 4 . . Terminals 18 | . . . . 8 10 Fabricators . | . . . . . . Repair Stations . | . . . . . . Recycling Units 3 | . 3 . . . . Scanalyzers . | . . . . . . Garrison Access . | . . . . . . Terminal Hacks 54 | . . . 46 4 4 Record 51 | . . . 46 2 3 Open Door 2 | . . . . 1 1 Open DSF 1 | . . . . 1 . Fabricator Hacks . | . . . . . . Repair Station Hacks . | . . . . . . Recycling Unit Hacks 3 | . 3 . . . . Report Inventory 1 | . 1 . . . . Retrieve Components 2 | . 2 . . . . Scanalyzer . | . . . . . . Garrison Access Hacks . | . . . . . . Unauthorized Hacks . | . . . . . . Terminals . | . . . . . . Fabricators . | . . . . . . Repair Stations . | . . . . . . Recycling Units . | . . . . . . Scanalyzers . | . . . . . . Garrison Access . | . . . . . . Data Cores Recovered . | . . . . . . Used . | . . . . . . Hacking Detections 7 | . 1 . . 3 3 Full Trace Events 1 | . . . . . 1 Feedback Events 1 | . . . . . 1 Corruption 1 | . . . . . 1 Feedback Blocked . | . . . . . . Robot Schematics Acquired . | . . . . . . Robots Built . | . . . . . . Authchips . | . . . . . . Time . | . . . . . . Total Robot Build Rating . | . . . . . . Part Schematics Acquired . | . . . . . . Parts Built . | . . . . . . Authchips . | . . . . . . Time . | . . . . . . Total Part Build Rating . | . . . . . . Parts Repaired . | . . . . . . Time . | . . . . . . Parts Recycled . | . . . . . . Recycled Matter . | . . . . . . Retrieved Matter . | . . . . . . Retrieved Components 4 | . 4 . . . . Parts Scanalyzed . | . . . . . . Part Schematics Acquired . | . . . . . . Parts Damaged . | . . . . . . Bothacking | -11 -10 -10 -7 -5 -5 ------------ Run | Yrd Mat Sub Scr Fac Ext Used RIF Installer . | . . . . . . Robots Hacked . | . . . . . . Non-combat . | . . . . . . Combat . | . . . . . . Robot Hacks Applied . | . . . . . . Relay Couplers Released . | . . . . . . Fabnet Peak Effective % . | . . . . . . Robots Rewired . | . . . . . . Allies Hacked . | . . . . . . Hacks Repelled . | . . . . . . Allies | -11 -10 -10 -7 -5 -5 -------- Run | Yrd Mat Sub Scr Fac Ext Total Allies 2 | . . . . . 2 Largest Group 2 | . . . . . 2 Highest-Rated Group 62 | . . . . . 62 Highest-Rated Ally 31 | . . . . . 31 Total Orders . | . . . . . . Ally Attacks 7 | . . . . . 7 Total Damage 130 | . . . . . 130 Kills 2 | . . . . . 2 Allies Corrupted . | . . . . . . Allies Melted 2 | . . 1 1 . . Intel | -11 -10 -10 -7 -5 -5 ------- Run | Yrd Mat Sub Scr Fac Ext Active Infowar (turns) 3410 | . 116 278 1584 1023 409 Optics 174 | . . 81 93 . . Sensors 904 | . . . . 904 . IFF 477 | . . . 477 . . Terrain 1014 | . . . 1014 . . Triangulation 528 | . . . . 119 409 ECM 313 | . 116 197 . . . Robot Analysis Total . | . . . . . . Derelict Logs Recovered 2 | . . 1 1 . . Drone Launches 3 | . . . . . 3 Drone Recoveries . | . . . . . . Exploration | -11 -10 -10 -7 -5 -5 ------------- Run | Yrd Mat Sub Scr Fac Ext Turns Passed 6192 | 48 189 280 1877 3178 620 Spaces Moved 3340 | 49 190 237 1547 1072 245 Core 32 | 5 . . . 27 . Treads . | . . . . . . Legs 789 | . . . 58 731 . Wheels 2519 | 44 190 237 1489 314 245 Hover . | . . . . . . Flight . | . . . . . . Fastest Speed 50 | 50 80 95 95 97 125 Average Speed 147 | 76 83 95 112 229 126 Slowest Speed 2100 | 80 95 95 360 2100 145 Overloaded Moves . | . . . . . . Propulsion Burnouts . | . . . . . . Robots Hopped . | . . . . . . Potential Cave-ins 1 | . . . . . 1 Cave-ins Triggered 8 | . . . . . 8 Exploration Rate (%) 32 | 4 32 18 86 20 33 Regions Visited 5 Branch Regions 3 Pre-discovered Areas 1 | . . 1 . . . Known Exits Taken 1 | . . . 1 . . Unknown Exits Taken 4 | 1 1 1 . 1 . Scrap Searched 6 | . . . 6 . . Spaces Dug 5 | . . . . 3 2 Terrain Destroyed 296 | . . . 4 285 7 Melee . | . . . . . . Projectile 50 | . . . 2 41 7 AOE 246 | . . . 2 244 . Terrain Rammed . | . . . . . . Walls Destroyed . | . . . . . . Machines Disabled . | . . . . . . Actions | -11 -10 -10 -7 -5 -5 --------- Run | Yrd Mat Sub Scr Fac Ext Total 4278 | 56 218 274 1663 1542 525 Wait 540 | . 13 23 31 220 253 Move 3335 | 48 189 236 1546 1071 245 Hop . | . . . . . . Pick Up 68 | 2 10 2 22 28 4 Fast Attach 53 | 6 1 1 8 34 3 Attach 31 | . . . 7 23 1 Detach 2 | . . . . 2 . Swap 20 | . 1 2 5 11 1 Drop 47 | . 3 1 27 13 3 Fire 166 | . 1 9 16 125 15 Melee . | . . . . . . Ram . | . . . . . . Kick . | . . . . . . Crush . | . . . . . . Escape Stasis 15 | . . . . 15 . Rewire 1 | . . . 1 . . Trap . | . . . . . . Miscellaneous . | . . . . . . Route ------- -11/Scrapyard -10/Materials (discovered 2 exits: [*Mat] / [*Sub]) -10/Subcaves (discovered 2 exits: *Scr x2) -7/Scraptown (discovered 2 exits: *Fac x2) -5/Factory (discovered 2 exits: [*Fac] / *Ext) -5/Extension History --------- Turn | Location | Event 27 | -11/Scrapyard | Discovered new exit (range 14) 49 | -11/Scrapyard | Entered Materials 50 | -10/Materials | Met a group of wandering Federalists 134 | -10/Materials | Discovered new exit (range 12) 234 | -10/Materials | Discovered new exit (range 6) 238 | -10/Materials | Entered Subcaves 239 | -10/Subcaves | Continued accompanying wandering Federalists (5) 239 | -10/Subcaves | Approached by a straggling Scientist 242 | -10/Subcaves | Learned location of Zion (-6) 285 | -10/Subcaves | A swath of the cavern ceiling suddenly collapsed 300 | -10/Subcaves | Build established: Mutant 457 | -10/Subcaves | Lost 4 allies 497 | -10/Subcaves | Scientist uncovered a shortcut to Scraptown 518 | -10/Subcaves | Entered Scraptown 634 | -7/Scraptown | Visited Cave Peace 668 | -7/Scraptown | Visited Bundlers 1062 | -7/Scraptown | Discovered new exit (range 5) 1144 | -7/Scraptown | Scanned Subdweller tech in exchange for log data 1147 | -7/Scraptown | Learned Factory garrison access intel 1326 | -7/Scraptown | Visited Cyclists 1504 | -7/Scraptown | Visited UFD Registry 1504 | -7/Scraptown | Registered with UFD as "Cryodisc" 1543 | -7/Scraptown | Visited Scrapoid Research Area 1593 | -7/Scraptown | Visited Chapter 10 1628 | -7/Scraptown | Visited Junk Repository 1851 | -7/Scraptown | Visited Scrapoid Pod Storage 1858 | -7/Scraptown | Found Scrapoid Pod 1878 | -7/Scraptown | Visited Research Penetration Think Tank 1902 | -7/Scraptown | Visited Derelict Rescue Squad 1909 | -7/Scraptown | Found DRS Beacon 1925 | -7/Scraptown | Visited LU-1G1's Boring Crew 1983 | -7/Scraptown | Met Optimus 1983 | -7/Scraptown | Accepted into 0bPrime 2093 | -7/Scraptown | Visited Junk Repository 2111 | -7/Scraptown | Visited Scrap Suit Storage 2119 | -7/Scraptown | Found Scrap Suit 2129 | -7/Scraptown | Civil war broke out across Scraptown 2215 | -7/Scraptown | Lost 7 allies 2236 | -7/Scraptown | Lost 4 parts (1p1n1u1w) 2236 | -7/Scraptown | Identified exit to Factory 2320 | -7/Scraptown | Lost 3 allies 2331 | -7/Scraptown | Core integrity fell below 50% 2361 | -7/Scraptown | Optimus destroyed in the chaos of civil war 2395 | -7/Scraptown | Entered Factory 2395 | -5/Factory | Evolved 10 slots: Power x2, Propulsion x2, Utility x3, Weapon x3 2396 | -5/Factory | Loaded intel: 4 garrison access locations 2694 | -5/Factory | Build established: Scavenger-Scrapper 2712 | -5/Factory | Discovered new exit (range 14) 2765 | -5/Factory | Lost 3 parts (2p1w) 3651 | -5/Factory | Build established: Scavenger-Gunner 3899 | -5/Factory | Lost 5 parts (1p1n2u1w) 4191 | -5/Factory | Lost 3 parts (1u2w) 4462 | -5/Factory | Core integrity fell below 50% 4603 | -5/Factory | Found Launcher Loader 4704 | -5/Factory | Lost 5 parts (1p1n3w) 4830 | -5/Factory | Lost 7 parts (3n1u3w) 5167 | -5/Factory | Lost 3 parts (1n2w) 5532 | -5/Factory | Lost 3 parts (1p1n1w) 5558 | -5/Factory | Discovered new exit (range 6) 5573 | -5/Factory | Entered Extension 5657 | -5/Extension | Rescued a captive Derelict 5658 | -5/Extension | Rescued a captive Derelict 5822 | -5/Extension | Core integrity fell below 20% 5838 | -5/Extension | Spotted B-75 Beast 5867 | -5/Extension | Lost 4 allies 5916 | -5/Extension | System corruption reached 10% 5927 | -5/Extension | Crushed by falling debris 5939 | -5/Extension | Crushed by falling debris 5970 | -5/Extension | Lost 7 parts (3p2n2w) 5982 | -5/Extension | Crushed by falling debris 5982 | -5/Extension | System corruption reached 30% 5986 | -5/Extension | Crushed by falling debris 6017 | -5/Extension | Crushed by falling debris 6017 | -5/Extension | Lost 4 parts (1n2u1w) 6018 | -5/Extension | Crushed by falling debris 6036 | -5/Extension | Crushed by falling debris 6194 | -5/Extension | Crushed by falling debris 6194 | -5/Extension | Smashed by cave-in Last Messages --------------- 06018_ Crushed by falling debris. 06018_ Imp. Corruption Screen destroyed. 06018_ System corrupted by crushing effect (+1). 06030_ System corrupted: Substantial component data lost. 06036_ The unstable cave ceiling collapses. 06036_ Crushed by falling debris. 06045_ System corrupted: Energy discharge (-38). 06061_ System corrupted: Matter fused (-6). 06077_ System corrupted: Matter fused (-9). 06095_ IXB71K7S8VT